[Event "Turkish Youth Teams U18 2024"]
[Site "Karaman"]
[Date "2024.04.22"]
[Round "4"]
[White "Tonuk, Deniz"]
[Black "Demirtas, Alper"]
[Result "0-1"]
[ECO "C10"]
[WhiteElo "1768"]
[BlackElo "2020"]
[Annotator "TA"]
[PlyCount "80"]
[EventDate "2024.04.21"]
[EventType "team-tourn"]
[EventCountry "TUR"]
[SourceTitle "playchess.com"]
[Source "ChessBase"]
[SourceQuality "1"]
[TimeControl "5400+30"]

{[%evp 23,80,12,10,14,10,15,45,0,0,0,0,6,22,1,12,0,0,0,0,-22,-14,-51,-34,-29,-26,-73,-24,-24,-31,-28,-25,-29,-25,-87,-86,-109,-114,-108,-105,-97,-97,-727,-713,-705,-687,-29990,-29991,-29991,-29986,-29988,-29986,-29983,-1466,-1283,-1265,-29991,-29991,-29991,-29992]} 1. e4 {[%emt 0:01:00]} e6 {[%emt 0:01:00]} 2. d4 {[%emt 0:00:30]} d5 {[%emt 0:00:30]} 3. Nd2 {[%emt 0:00:00]} dxe4 {[%emt 0:00:30]} 4. Nxe4 {[%emt 0:00:00]} Nd7 {[%emt 0:00:30]} 5. Nf3 {[%emt 0:00:30]} Ngf6 {[%emt 0:00:00]} 6. Bd3 {[%emt 0:00:30]} Be7 {[%emt 0:00:00]} 7. O-O {[%emt 0:01:30]} O-O {[%emt 0:00:30]} 8. Qe2 {[%emt 0:01:30]} b6 {[%emt 0:00:00]} 9. c3 {[%emt 0:00:30]} Bb7 {[%emt 0:00:00]} 10. Bf4 {[%emt 0:02:30]} Nxe4 {[%emt 0:06:30]} 11. Bxe4 {[%emt 0:00:30]} Bxe4 {[%emt 0:00:30]} 12. Qxe4 {[%emt 0:00:00]} c5 {[%emt 0:00:30]} 13. Rad1 {[%emt 0:07:00]} Nf6 {[%emt 0:04:30]} 14. Qe2 {[%emt 0:00:30]} Qc8 {[%emt 0:00:30]} 15. Rfe1 {[%emt 0:01:30] White is slightly better.} (15. d5 $5) 15... Rd8 {[%emt 0:04:30]} 16. h3 {[%emt 0:01:30]} Nd5 {[%emt 0:03:30]} 17. Bg3 {[%emt 0:02:30]} Bf6 {[%emt 0:05:30]} 18. Be5 {[%emt 0:01:30]} Bxe5 {[%emt 0:07:30]} 19. dxe5 {[%emt 0:01:30]} Qc6 {[%emt 0:08:30]} 20. Qe4 {[%emt 0:04:30] [#] Ng5 is the strong threat.} Ne7 {[%emt 0:01:30] ...Rxd1 would now be deadly.} 21. Qf4 {[%emt 0:00:30]} Ng6 {[%emt 0:05:30]} 22. Qg5 {[%emt 0:02:30]} Rd7 {[%emt 0:00:30]} 23. h4 {[%emt 0:07:30]} h6 {[%emt 0:00:30]} 24. Qe3 {[%emt 0:01:30] [#]} (24. Qg4 $11 {deserves consideration.}) 24... Rad8 {[%emt 0:01:30]} ({Better is} 24... Rxd1 $1 $17 25. Rxd1 Qa4) 25. Rxd7 $11 {[%emt 0:00:30]} Rxd7 {[%emt 0:00:30]} 26. h5 {[%emt 0:06:30]} Ne7 {[%emt 0:00:30]} 27. Qf4 {[%emt 0:02:30]} Qd5 {[%emt 0:01:30]} 28. c4 {[%emt 0:01:30]} (28. Qa4 $11) 28... Qd3 $17 {[%emt 0:00:30]} 29. g4 {[%emt 0:02:30]} Nc6 {[%emt 0:02:30]} 30. Re3 {[%emt 0:12:30]} Qb1+ {[%emt 0:04:30]} 31. Kg2 {[%emt 0:00:00]} Rd1 {[%emt 0:06:30][%cal Od1h1] And now ...Rh1! would win. Black has more active pieces.} (31... Qxb2 $6 32. Qe4 Nd4 33. Qa8+ Kh7 34. Qe8 Nxf3 35. Qxd7 Nxe5 36. Rxe5 (36. Qd1 g5 $11) 36... Qxe5 37. Qxf7 $11) 32. g5 $2 {[%emt 0:19:00][%mdl 8192] Loses the game.} (32. Qe4 $17 Qxe4 33. Rxe4) 32... Rh1 $19 {[%emt 0:00:30] ( -> ...Qf1+)} (32... Qxa2 $2 {is the wrong capture.} 33. Qe4 (33. gxh6 Qb1 $16) 33... Nd8 34. Rd3 $18 (34. gxh6 gxh6 35. Qf4 Kh7 $16)) 33. Qg4 {[%emt 0:00:30]} Ne7 {[%emt 0:06:30] Hoping for ...Qf1+.} 34. Qe4 {[%emt 0:06:33]} Qf1+ {[%emt 0:01:30]} 35. Kg3 {[%emt 0:00:02]} Nf5+ {[%emt 0:00:30]} 36. Kf4 {[%emt 0:00:37]} hxg5+ {[%emt 0:01:30]} 37. Kxg5 {[%emt 0:00:06]} Nxe3 {[%emt 0:05:30]} (37... Qxf2 $142 38. Rd3 Rh3 (38... Qxb2 $2 39. Rd2 $19) 39. Ne1 Rg3+ (39... f6+ $2 40. exf6 Rg3+ 41. Rxg3 $19) 40. Rxg3 Qxg3+ (40... f6+ $2 41. exf6 Qxg3+ 42. Qg4 $19) 41. Qg4 Qxe5 (41... Qxe1 42. Qxf5 exf5 43. Kxf5 Qb1+ 44. Kf4 Qxa2 45. Kf5 Qxc4 46. e6 Qxe6+ 47. Kf4 f5 48. Kf3 Qe4+ 49. Kg3 Qe3+ 50. Kg2 f4 51. h6 gxh6 52. b4 Qe2+ 53. Kh3 cxb4 54. Kh4 Qg2 55. Kh5 Qg5#) (41... f6+ 42. exf6 gxf6+ 43. Kxf6+ Qxg4 44. Nd3 Qd4+ 45. Kxe6 Qxd3 46. Ke5 Kf7 47. a4 Ng3 48. Kf4 Ne2+ 49. Ke5 Qd4+ 50. Kf5 Qf4#) 42. Qf4 Qxe1 (42... Qf6+ $2 43. Kg4 $19) 43. Qb8+ Kh7 44. Kg4 Qe4+ 45. Kh3 Qh1+ (45... Qxc4 $2 46. Qe5 $19) 46. Kg4 Qg2+ 47. Kf4 Qg3+ 48. Ke4 Qe3#) 38. fxe3 {[%emt 0:00:32]} Qg2+ {[%emt 0:00:30]} 39. Kf4 {[%emt 0:00:30]} Rxh5 {[%emt 0:00:00]} 40. Qa8+ {[%emt 0:00:50]} Kh7 {[%emt 0:00:00] Weighted Error Value: White=0.84/Black=0.24 (precise) .  Loses game:     	White=1     	---        Mistake:       	White=2     	Black=1      Inaccurate:     	White=2     	Black=1      OK:         	White=6     	Black=10     Best:        	White=1     	Black=2} 0-1

[Event "Turkish Youth Teams U18 2024"]
[Site "Karaman"]
[Date "2024.04.22"]
[Round "4"]
[White "Torcuk, Hasan Cinar"]
[Black "Gul, Servet"]
[Result "0-1"]
[ECO "B22"]
[WhiteElo "1731"]
[BlackElo "1694"]
[Annotator "NA RC COMBH"]
[PlyCount "92"]
[EventDate "2024.04.21"]
[EventType "team-tourn"]
[EventCountry "TUR"]
[SourceTitle "playchess.com"]
[Source "ChessBase"]
[SourceQuality "1"]
[TimeControl "5400+30"]

1. e4 {[%emt 0:01:00]} c5 {[%emt 0:01:00]} 2. Nf3 {[%emt 0:00:30]} a6 {[%emt 0:00:00]} 3. c3 {[%emt 0:00:00]} e6 {[%emt 0:01:00]} 4. d4 {[%emt 0:00:00]} d5 {[%emt 0:00:00]} 5. dxc5 {[%emt 0:10:30]} Bxc5 {[%emt 0:01:00]} 6. exd5 {[%emt 0:00:00]} exd5 {[%emt 0:01:30]} 7. Nd4 {[%emt 0:00:00]} Ne7 {[%emt 0:03:30]} 8. Be3 {[%emt 0:03:30]} Qd6 {[%emt 0:05:30]} 9. Nd2 {[%emt 0:01:30]} Nbc6 {[%emt 0:00:30]} 10. N2b3 {[%emt 0:06:30]} Ba7 {[%emt 0:02:30]} 11. Qf3 {[%emt 0:02:30]} O-O {[%emt 0:03:30]} 12. Qg3 {[%emt 0:05:30]} Qd7 {[%emt 0:04:30]} 13. Be2 {[%emt 0:08:30]} Nxd4 {[%emt 0:02:30]} 14. Nxd4 {[%emt 0:01:30]} Bxd4 {[%emt 0:00:00]} 15. Bxd4 {[%emt 0:00:30]} Nf5 {[%emt 0:00:00]} 16. Qd3 {[%emt 0:00:00]} Re8 {[%emt 0:06:30]} 17. O-O {[%emt 0:14:00]} Nxd4 {[%emt 0:00:30]} 18. cxd4 {[%emt 0:00:00]} Qd6 {[%emt 0:00:30]} 19. Bf3 {[%emt 0:00:00]} Bd7 {[%emt 0:02:30]} 20. Qb3 {[%emt 0:01:30]} Bc6 {[%emt 0:02:30]} 21. Rac1 {[%emt 0:01:30]} f5 {[%emt 0:00:30]} 22. Rfe1 {[%emt 0:00:30]} g5 {[%emt 0:00:30]} 23. Bh5 {[%emt 0:04:30]} Re4 {[%emt 0:06:30]} 24. Rxe4 {[%emt 0:03:30]} fxe4 {[%emt 0:00:00]} 25. Qh3 {[%emt 0:05:30]} Rf8 {[%emt 0:00:00]} 26. Qe3 {[%emt 0:08:30]} Qh6 {[%emt 0:03:30]} 27. Be2 {[%emt 0:02:30]} Qg6 {[%emt 0:03:30]} 28. Qc3 {[%emt 0:00:30]} Rf6 {[%emt 0:01:30]} 29. Qg3 {[%emt 0:05:03]} h5 {[%emt 0:01:30]} 30. h3 {[%emt 0:01:53]} h4 {[%emt 0:12:30]} 31. Qg4 {[%emt 0:01:49]} Rf5 {[%emt 0:01:30]} 32. Rc3 {[%emt 0:02:37]} Qf6 {[%emt 0:00:30]} 33. g3 {[%emt 0:02:45]} hxg3 {[%emt 0:17:40]} 34. Rxg3 {[%emt 0:01:03]} Kf7 {[%emt 0:01:37]} 35. h4 {[%emt 0:01:49]} Rxf2 {[%emt 0:00:30]} 36. hxg5 {[%emt 0:00:30]} Qxd4 {[%emt 0:00:30]} 37. Kh1 {[%emt 0:02:50]} Kf8 {[%emt 0:10:13]} 38. g6 {[%emt 0:02:21]} Qg7 {[%emt 0:00:12]} 39. Qh5 {[%emt 0:01:54]} Rf6 {[%emt 0:00:30]} 40. Rg5 {[%emt 0:00:30]} d4 {[%emt 0:00:30]} 41. Rf5 {[%emt 0:00:30]} e3+ {[%emt 0:00:30]} 42. Kg1 {[%emt 0:00:14]} Rxf5 {[%emt 0:01:21]} 43. Qxf5+ {[%emt 0:00:03]} Ke7 {[%emt 0:00:00]} 44. Bg4 {[%emt 0:00:31]} Qf6 {[%emt 0:00:16]} 45. Qc5+ {[%emt 0:00:13]} Ke8 {[%emt 0:00:59]} 46. Qh5 {[%emt 0:00:30]} Qf2# {[%emt 0:00:00]} 0-1

[Event "Turkish Youth Teams U18 2024"]
[Site "Karaman"]
[Date "2024.04.22"]
[Round "4"]
[White "Gedik, Eylul Ceren"]
[Black "Karadas, Hena"]
[Result "0-1"]
[ECO "A20"]
[WhiteElo "1727"]
[BlackElo "1775"]
[Annotator "NA RC COMBH"]
[PlyCount "82"]
[EventDate "2024.04.21"]
[EventType "team-tourn"]
[EventCountry "TUR"]
[SourceTitle "playchess.com"]
[Source "ChessBase"]
[SourceQuality "1"]
[TimeControl "5400+30"]

1. c4 {[%emt 0:03:00]} e5 {[%emt 0:01:00]} 2. d3 {[%emt 0:00:00]} Nc6 {[%emt 0:00:30]} 3. a3 {[%emt 0:00:00]} a5 {[%emt 0:00:00]} 4. g3 {[%emt 0:00:30]} Bc5 {[%emt 0:00:00]} 5. Bg2 {[%emt 0:00:30]} d6 {[%emt 0:00:30]} 6. Nf3 {[%emt 0:00:30]} Nge7 {[%emt 0:01:30]} 7. Nc3 {[%emt 0:01:30]} Ba7 {[%emt 0:03:30]} 8. O-O {[%emt 0:00:30]} O-O {[%emt 0:00:30]} 9. Rb1 {[%emt 0:00:30]} Bg4 {[%emt 0:01:30]} 10. h3 {[%emt 0:04:30]} Be6 {[%emt 0:00:30]} 11. b4 {[%emt 0:01:30]} Qd7 {[%emt 0:07:30]} 12. Kh2 {[%emt 0:00:30]} h6 {[%emt 0:03:30]} 13. e3 {[%emt 0:03:30]} f5 {[%emt 0:03:30]} 14. b5 {[%emt 0:03:30]} Nd8 {[%emt 0:02:30]} 15. Qe2 {[%emt 0:08:30]} g5 {[%emt 0:04:30]} 16. Nd2 {[%emt 0:07:30]} f4 {[%emt 0:07:30]} 17. Nb3 {[%emt 0:07:30]} Ng6 {[%emt 0:13:30]} 18. exf4 {[%emt 0:09:30]} exf4 {[%emt 0:01:30]} 19. Qh5 {[%emt 0:11:30]} Kh7 {[%emt 0:05:30]} 20. Ne4 {[%emt 0:00:30]} Qe7 {[%emt 0:02:30]} 21. Bb2 {[%emt 0:00:30]} Ne5 {[%emt 0:02:30]} 22. Qd1 {[%emt 0:12:30]} f3 {[%emt 0:05:30]} 23. Bh1 {[%emt 0:00:00]} Qf7 {[%emt 0:02:30]} 24. Bxe5 {[%emt 0:08:29]} dxe5 {[%emt 0:00:30]} 25. Nbd2 {[%emt 0:03:28]} g4 {[%emt 0:03:30]} 26. c5 {[%emt 0:03:53]} Bf5 {[%emt 0:05:30]} 27. hxg4 {[%emt 0:03:16]} Bxg4 {[%emt 0:00:30]} 28. Nc4 {[%emt 0:00:30]} Ne6 {[%emt 0:01:30]} 29. b6 {[%emt 0:02:41]} cxb6 {[%emt 0:00:30]} 30. cxb6 {[%emt 0:00:16]} Bb8 {[%emt 0:00:30]} 31. Re1 {[%emt 0:02:04]} Kg7 {[%emt 0:02:28]} 32. Ne3 {[%emt 0:01:06]} Qh5+ {[%emt 0:01:02]} 33. Kg1 {[%emt 0:00:30]} Nd4 {[%emt 0:00:30]} 34. Nc3 {[%emt 0:00:36]} Bd6 {[%emt 0:02:54]} 35. Nxg4 {[%emt 0:00:30]} Qxg4 {[%emt 0:00:30]} 36. Re4 {[%emt 0:00:30]} Qf5 {[%emt 0:00:30]} 37. Qd2 {[%emt 0:00:30]} Rac8 {[%emt 0:00:42]} 38. Rbe1 {[%emt 0:01:25]} Rf6 {[%emt 0:00:58]} 39. Nd5 {[%emt 0:00:47]} Rg6 {[%emt 0:00:50]} 40. Ne3 {[%emt 0:00:36]} Qh3 {[%emt 0:00:29]} 41. Rh4 {[%emt 0:00:55]} Qxh4 {[%emt 0:00:10]} 0-1

[Event "Turkish Youth Teams U18 2024"]
[Site "Karaman"]
[Date "2024.04.22"]
[Round "4"]
[White "Akkaya, Yigit"]
[Black "Orhon, Bora"]
[Result "1/2-1/2"]
[ECO "C03"]
[WhiteElo "1700"]
[BlackElo "1997"]
[Annotator "TA"]
[PlyCount "70"]
[EventDate "2024.04.21"]
[EventType "team-tourn"]
[EventCountry "TUR"]
[SourceTitle "playchess.com"]
[Source "ChessBase"]
[SourceQuality "1"]
[TimeControl "5400+30"]

{[%evp 9,70,-11,-3,-8,-14,-91,-84,-85,20,-118,-106,-111,-106,-104,-105,-114,-115,-104,-106,-101,-95,-87,-73,-70,-66,-72,-45,-56,-53,-59,-63,-68,-41,-33,-14,-6,-5,-13,-15,-23,0,0,0,0,0,0,0,-36,0,-102,-12,-57,-20,-158,-148,-175,0,-140,0,-164,0,-130,0]} 1. e4 {[%emt 0:03:00]} e6 {[%emt 0:01:00]} 2. d4 {[%emt 0:00:30]} d5 {[%emt 0:00:30]} 3. Nd2 {[%emt 0:00:00]} Be7 {[%emt 0:00:30]} 4. f4 {[%emt 0:00:00]} c5 {[%emt 0:05:30]} 5. e5 {[%emt 0:00:30]} Nc6 {[%emt 0:02:30]} 6. Ngf3 {[%emt 0:00:30]} Nh6 {[%emt 0:01:30]} 7. Bb5 {[%emt 0:07:30]} (7. Bd3 $11) 7... Nf5 $17 {[%emt 0:02:30]} 8. Qe2 {[%emt 0:02:30] Against Ne3} Qb6 {[%emt 0:10:30]} ({Much less strong is} 8... cxd4 9. a4 $15) ({Much worse is} 8... Nfxd4 9. Nxd4 cxd4 10. a3 $11) (8... O-O $17 9. Nb3 c4 (9... Ncxd4 10. Nbxd4 Nxd4 11. Nxd4 $11) (9... cxd4 10. O-O $15) 10. Bxc6 bxc6 (10... cxb3 11. Bb5 $15)) 9. g4 {[%emt 0:15:30]} (9. dxc5 $11 {keeps the balance.} Bxc5 10. Nb3) 9... Nfxd4 {[%emt 0:04:30]} 10. Nxd4 {[%emt 0:05:30]} cxd4 {[%emt 0:00:30]} 11. Nf3 {[%emt 0:02:30]} Bd7 {[%emt 0:09:30]} 12. Bd3 {[%emt 0:02:30]} Nb4 {[%emt 0:02:30]} 13. O-O {[%emt 0:04:30]} Rc8 {[%emt 0:06:30][%cal Oc8c2]} 14. Kg2 {[%emt 0:07:30]} a5 {[%emt 0:15:30]} 15. b3 {[%emt 0:02:30]} Nxd3 {[%emt 0:12:30]} 16. cxd3 {[%emt 0:00:30]} Bb4 {[%emt 0:00:30]} 17. Bb2 {[%emt 0:01:30]} Bc3 {[%emt 0:00:30]} 18. Rac1 {[%emt 0:00:30]} O-O {[%emt 0:02:48]} 19. Qf2 {[%emt 0:03:30] [#] And now Bxc3 would win.} Qa6 {[%emt 0:04:10]} 20. Rfd1 {[%emt 0:04:30]} Bxb2 {[%emt 0:03:22]} 21. Qxb2 {[%emt 0:00:30]} Rxc1 {[%emt 0:03:49]} 22. Qxc1 {[%emt 0:00:30]} Rc8 {[%emt 0:00:03]} 23. Qd2 {[%emt 0:00:30]} Qb6 {[%emt 0:01:26]} 24. Rc1 {[%emt 0:03:30]} Rxc1 {[%emt 0:02:15]} 25. Qxc1 $11 {[%emt 0:00:30][%mdl 4096] Endgame. KQB-KQN} h6 {[%emt 0:00:13]} 26. Kf2 {[%emt 0:01:30]} a4 $36 {[%emt 0:02:05][%mdl 2048] Black is more active.} 27. Qb2 {[%emt 0:01:30]} Qc5 {[%emt 0:01:14]} 28. b4 {[%emt 0:00:30]} a3 {[%emt 0:00:19]} 29. Qd2 {[%emt 0:03:30]} (29. Qxa3 $11 {remains equal.} Qc2+ 30. Kg3) 29... Qb6 {[%emt 0:01:37]} ({Black should play} 29... Qc3 $17 {Strongly threatening ...Qa1.} 30. Qxc3 dxc3) 30. Ne1 {[%emt 0:01:30]} Ba4 {[%emt 0:00:08] White should prevent ...Qc6.} 31. Ke2 {[%emt 0:01:30]} (31. Nf3 $11) 31... Qc6 {[%emt 0:00:22]} 32. Nf3 {[%emt 0:00:30]} Qb6 {[%emt 0:00:30]} 33. Ne1 {[%emt 0:00:00]} Qc6 {[%emt 0:01:58]} 34. Nf3 $1 {[%emt 0:00:00]} Qb6 {[%emt 0:01:20]} 35. Ne1 {[%emt 0:00:30] [#]} Qc6 {[%emt 0:01:41] Weighted Error Value: White=0.26 (precise) /Black=0.32.  Mistake:       	White=4     	Black=3      Inaccurate:     	White=2     	Black=3      OK:         	White=12    	Black=11     Best:        	---       	Black=2      Strong:       	White=1     	---} (35... Qc7 $1 $17 36. Nf3 Qc3 37. Qxc3 dxc3) 1/2-1/2

[Event "Turkish Youth Teams U18 2024"]
[Site "Karaman"]
[Date "2024.04.22"]
[Round "4"]
[White "Mullakutukcu, Ela"]
[Black "Iyican, Sude"]
[Result "1/2-1/2"]
[ECO "A80"]
[WhiteElo "1693"]
[BlackElo "1562"]
[Annotator "NA RC COMBH"]
[PlyCount "77"]
[EventDate "2024.04.21"]
[EventType "team-tourn"]
[EventCountry "TUR"]
[SourceTitle "playchess.com"]
[Source "ChessBase"]
[SourceQuality "1"]
[TimeControl "5400+30"]

1. d4 {[%emt 1:31:00]} e6 {[%emt 1:31:00]} 2. Bf4 {[%emt 0:00:30]} b6 {[%emt 0:00:30]} 3. e3 {[%emt 0:00:30]} Bb7 {[%emt 0:00:30]} 4. Nf3 {[%emt 0:00:30]} f5 {[%emt 0:00:30]} 5. Be2 {[%emt 0:00:30]} Nf6 {[%emt 0:00:30]} 6. Nbd2 {[%emt 0:00:30]} Be7 {[%emt 0:00:30]} 7. h3 {[%emt 0:00:30]} O-O {[%emt 0:00:30]} 8. O-O {[%emt 0:00:30]} Qc8 {[%emt 0:00:30]} 9. c4 {[%emt 0:00:30]} d6 {[%emt 0:00:30]} 10. Rc1 {[%emt 0:00:30]} Nbd7 {[%emt 0:00:30]} 11. Qb3 {[%emt 0:00:30]} c5 {[%emt 0:00:30]} 12. Rfd1 {[%emt 0:00:30]} h6 {[%emt 0:00:30]} 13. Bh2 {[%emt 0:00:30]} g5 {[%emt 0:00:30]} 14. Qc2 {[%emt 0:00:30]} Qe8 {[%emt 0:00:30]} 15. Bd3 {[%emt 0:00:30]} Qg6 {[%emt 0:00:30]} 16. Re1 {[%emt 0:00:30]} Ne4 {[%emt 0:00:30]} 17. Re2 {[%emt 0:00:30]} g4 {[%emt 0:00:30]} 18. hxg4 {[%emt 0:00:30]} Qxg4 {[%emt 0:00:30]} 19. Ne1 {[%emt 0:00:30]} Ng5 {[%emt 0:00:30]} 20. f3 {[%emt 0:00:30]} Qh5 {[%emt 0:00:30]} 21. d5 {[%emt 0:00:30]} exd5 {[%emt 0:00:30]} 22. cxd5 {[%emt 0:00:30]} Bxd5 {[%emt 0:00:30]} 23. e4 {[%emt 0:00:30]} fxe4 {[%emt 0:00:30]} 24. Nxe4 {[%emt 0:00:30]} Nxe4 {[%emt 0:00:30]} 25. Bxe4 {[%emt 0:00:30]} Bxe4 {[%emt 0:00:30]} 26. Rxe4 {[%emt 0:00:30]} Bg5 {[%emt 0:00:30]} 27. Rd1 {[%emt 0:00:30]} Nf6 {[%emt 0:00:30]} 28. Re6 {[%emt 0:00:30]} Qf7 {[%emt 0:00:30]} 29. Rdxd6 {[%emt 0:00:30]} Rfe8 {[%emt 0:00:30]} 30. Qf5 {[%emt 0:00:30]} Rxe6 {[%emt 0:00:30]} 31. Qxe6 {[%emt 0:00:30]} Qxe6 {[%emt 0:00:30]} 32. Rxe6 {[%emt 0:00:30]} Kf7 {[%emt 0:00:30]} 33. Re2 {[%emt 0:00:30]} Nd5 {[%emt 0:00:30]} 34. Nd3 {[%emt 0:00:30]} Be3+ {[%emt 0:00:30]} 35. Kf1 {[%emt 0:00:30]} Re8 {[%emt 0:00:30]} 36. Ne5+ {[%emt 0:00:30]} Ke6 {[%emt 0:00:30]} 37. Nc4 {[%emt 0:00:30]} Kd7 {[%emt 0:00:30]} 38. Nxe3 {[%emt 0:00:30]} Nxe3+ {[%emt 0:00:30]} 39. Kf2 {[%emt 0:00:30]} 1/2-1/2

[Event "Turkish Youth Teams U18 2024"]
[Site "Karaman"]
[Date "2024.04.22"]
[Round "4"]
[White "Acar, Zeynep"]
[Black "Yildiz, Elif Zeren"]
[Result "0-1"]
[ECO "E81"]
[WhiteElo "1671"]
[BlackElo "1926"]
[Annotator "TA"]
[PlyCount "116"]
[EventDate "2024.04.21"]
[EventType "team-tourn"]
[EventCountry "TUR"]
[SourceTitle "playchess.com"]
[Source "ChessBase"]
[SourceQuality "1"]
[TimeControl "5400+30"]

{[%evp 17,116,43,37,46,84,79,70,62,95,86,150,107,191,157,265,270,247,254,297,277,266,89,74,65,62,33,49,-18,0,0,0,-86,-94,-112,-118,-106,-112,-116,-120,-110,-113,-149,-150,-147,-157,-164,-173,-219,-150,-150,-150,-150,-24,-30,-26,-150,-150,-160,-174,-184,-150,-152,-152,-332,-333,-447,-428,-603,-608,-614,-627,-653,-640,-745,-810,-973,-967,-1126,-1066,-1071,-1038,-1300,-972,-1168,-1178,-1342,-1225,-1509,-1483,-964,-908,-2548,-2153,-4137,-4137,-2724,-1442,-29980,-29980,-29979,-29979]} 1. d4 {[%emt 0:01:00]} g6 {[%emt 0:01:00]} 2. c4 {[%emt 0:00:30]} Bg7 {[%emt 0:00:30]} 3. Nc3 {[%emt 0:00:00]} d6 {[%emt 0:00:00]} 4. e4 {[%emt 0:00:00]} Nf6 {[%emt 0:01:00]} 5. f3 {[%emt 0:02:30]} Nbd7 {[%emt 0:00:00]} 6. Be3 {[%emt 0:00:30]} O-O {[%emt 0:00:00]} 7. Nge2 {[%emt 0:00:30]} c5 {[%emt 0:00:00]} 8. d5 {[%emt 0:01:30]} Ne5 {[%emt 0:00:00]} 9. Ng3 {[%emt 0:00:30]} h5 {[%emt 0:00:30]} 10. Be2 {[%emt 0:01:30]} Rb8 {[%emt 0:05:30]} 11. O-O {[%emt 0:02:30]} a6 {[%emt 0:09:30]} 12. a4 {[%emt 0:01:30] White is slightly better.} b6 {[%emt 0:00:30]} 13. Qd2 {[%emt 0:06:30]} Re8 {[%emt 0:02:30]} (13... Nh7 $142) 14. Rae1 {[%emt 0:11:30]} e6 {[%emt 0:06:30]} (14... h4 $16 {might work better.}) 15. Bg5 $18 {[%emt 0:05:30]} Qc7 {[%emt 0:03:30]} (15... exd5 $16 16. exd5 (16. Nxd5 Ned7 $16) 16... b5) 16. f4 {[%emt 0:03:30]} Ned7 {[%emt 0:00:30]} 17. f5 {[%emt 0:05:30]} e5 {[%emt 0:05:30]} 18. Rf2 {[%emt 0:07:30]} Nh7 {[%emt 0:03:30]} 19. fxg6 $2 {[%emt 0:02:30] Black is weak on the light squares} (19. Bxh5 $18 {and White stays clearly on top.} gxh5 20. Nxh5) 19... fxg6 $16 {[%emt 0:00:30]} 20. Ref1 {[%emt 0:00:30][%cal Og3h5] [#] Nxh5! is the strong threat.} Rf8 {[%emt 0:03:30]} 21. Bf3 {[%emt 0:13:30]} Ndf6 {[%emt 0:00:30]} 22. Nce2 {[%emt 0:01:30]} (22. h3 $14) 22... b5 {[%emt 0:09:30]} 23. axb5 {[%emt 0:02:30]} axb5 {[%emt 0:00:30]} 24. Bxf6 {[%emt 0:03:30]} (24. cxb5 $11 Bd7 25. Nc3) 24... Rxf6 $17 {[%emt 0:04:30]} 25. cxb5 {[%emt 0:04:30]} Rxb5 {[%emt 0:00:30]} 26. Nc3 {[%emt 0:00:30]} Rb4 {[%emt 0:01:30]} 27. Be2 {[%emt 0:01:30]} Rxf2 {[%emt 0:05:30]} 28. Rxf2 {[%emt 0:00:30]} Qb7 {[%emt 0:01:30]} 29. Qc1 {[%emt 0:02:17]} Bd7 {[%emt 0:04:30]} (29... Rxb2 30. Ba6 Qxa6 31. Rxb2 $16) 30. Nf1 {[%emt 0:02:48]} Bf6 {[%emt 0:03:30][%cal Of6h4]} (30... Rxb2 31. Ba6 Qxa6 32. Qxb2 $16 (32. Rxb2 Nf6 $16)) 31. Qa1 {[%emt 0:04:05]} Bg5 {[%emt 0:01:30] Repels Ne3} (31... Rxb2 $2 32. Ba6 Qb4 33. Rxb2 $18) 32. g3 {[%emt 0:00:25]} (32. Kh1 $142) 32... Kg7 {[%emt 0:05:30][%cal Oh5h4]} (32... Rxb2 $2 {loses.} 33. Ba6 Rxf2 34. Bxb7 $18) 33. h4 {[%emt 0:01:51]} Bh6 {[%emt 0:00:30]} 34. Qa5 {[%emt 0:00:30] Wards off Qb6} Qb6 {[%emt 0:00:00]} (34... Rxb2 35. Qd8 c4 36. Qe7+ Kh8 37. Rf7 Qa7+ 38. Kh1 $18) (34... Qb8 $17 {[%cal Oh7f6] aiming for ...Nf6!} 35. Bf3 Rxb2 36. Rxb2 Qxb2) 35. Qxb6 $11 {[%emt 0:03:20]} Rxb6 {[%emt 0:00:00]} 36. Bf3 {[%emt 0:01:12]} (36. Bc4 $11) 36... Nf6 $17 {[%emt 0:00:30]} 37. Kg2 {[%emt 0:00:29]} Bc1 {[%emt 0:03:30] Black is much more active.} 38. Nd2 {[%emt 0:01:10]} Rb4 {[%emt 0:06:26] Repels Nc4} (38... Bxb2 39. Nc4 Rb3 40. Rxb2 $16) 39. Na2 {[%emt 0:01:11][%cal Oa2b4]} Bxd2 {[%emt 0:01:14]} ({Stronger than} 39... Rxb2 40. Nxc1 Rc2 41. Ncb3 $16) 40. Nxb4 {[%emt 0:02:51]} (40. Rxd2 $17 Rd4 (40... Nxe4 41. Re2 $15) 41. Rd1) 40... Bxb4 $19 {[%emt 0:00:30]} 41. Rf1 {[%emt 0:00:30]} Bb5 {[%emt 0:00:19]} 42. Ra1 {[%emt 0:00:14]} (42. Rd1 $142) 42... Bd3 {[%emt 0:00:08]} 43. Ra7+ {[%emt 0:00:24]} Kh6 {[%emt 0:00:15]} 44. Rf7 {[%emt 0:02:18]} Nxe4 {[%emt 0:00:09]} 45. Rd7 {[%emt 0:01:24]} c4 {[%emt 0:00:02]} 46. Rb7 {[%emt 0:01:02]} Bc5 {[%emt 0:00:02]} 47. g4 {[%emt 0:00:30]} hxg4 {[%emt 0:00:12]} 48. Bxg4 {[%emt 0:00:19]} Nf6 {[%emt 0:00:08]} 49. Be6 {[%emt 0:00:52]} Be4+ {[%emt 0:00:05]} 50. Kg3 {[%emt 0:00:30]} Bxd5 {[%emt 0:00:30]} 51. Bxd5 {[%emt 0:00:30]} Nxd5 {[%emt 0:00:30]} 52. Kg4 {[%emt 0:00:30]} Ne3+ {[%emt 0:00:30]} 53. Kf3 {[%emt 0:00:30]} Nf5 {[%emt 0:00:30][%cal Od6d5] [#] And now ...d5! would win.} 54. Kg4 {[%emt 0:00:00]} e4 {[%emt 0:00:45]} 55. Rb8 {[%emt 0:00:31]} e3 {[%emt 0:00:49]} 56. Re8 {[%emt 0:00:10]} Kg7 {[%emt 0:00:04] ( -> ...Kf7)} 57. Re4 {[%emt 0:00:50]} d5 {[%emt 0:00:15]} 58. Re5 {[%emt 0:00:00]} Bd4 {[%emt 0:00:19][%csl LRb2,LRe5] Never resign too early!   Weighted Error Value: White=0.48/Black=0.28 (precise) .  Loses game:     	White=1     	---        Missed win:     	White=1     	---        Mistake:       	White=5     	Black=4      Inaccurate:     	White=3     	Black=3      OK:         	White=8     	Black=12     Best:        	White=3     	Black=1} 0-1